[Event "*** Titled Tuesday Blitz"]
[Site "Chess.com"]
[Date "2018.12.04"]
[Round "6"]
[White "Alexander_Donchenko"]
[Black "jefferyx"]
[Result "1/2-1/2"]
[WhiteElo "2688"]
[BlackElo "2752"]
[TimeControl "180+2"]
[EndTime "14:24:15 PST"]
[Termination "Game drawn - insufficient material"]

1. Nf3 {[%clk 0:03:01.9]} 1... d5 {[%clk 0:03:01.2]} 2. g3 {[%clk 0:03:02.5]}
2... g6 {[%clk 0:03:02.1]} 3. Bg2 {[%clk 0:03:03.3]} 3... Bg7 {[%clk 0:03:03.7]}
4. d4 {[%clk 0:03:04.7]} 4... Nf6 {[%clk 0:03:05.1]} 5. O-O {[%clk 0:03:05.9]}
5... O-O {[%clk 0:03:06.4]} 6. c4 {[%clk 0:03:07.2]} 6... c6 {[%clk 0:03:08.1]}
7. b3 {[%clk 0:03:08.1]} 7... dxc4 {[%clk 0:03:08.8]} 8. bxc4 {[%clk 0:03:09.5]}
8... c5 {[%clk 0:03:09.5]} 9. Bb2 {[%clk 0:03:10.6]} 9... Qb6 {[%clk 0:03:09.3]}
10. Qc1 {[%clk 0:03:10]} 10... cxd4 {[%clk 0:03:08]} 11. Nxd4 {[%clk 0:03:10.6]}
11... Bd7 {[%clk 0:03:08.9]} 12. Nc3 {[%clk 0:03:10.7]} 12... Rc8 {[%clk
0:03:03.6]} 13. Qd2 {[%clk 0:02:17.2]} 13... Nc6 {[%clk 0:02:34.5]} 14. Nb3
{[%clk 0:02:01.2]} 14... Ne5 {[%clk 0:02:23.2]} 15. c5 {[%clk 0:02:00.2]} 15...
Qc7 {[%clk 0:02:20.7]} 16. Qf4 {[%clk 0:01:42.5]} 16... Bc6 {[%clk 0:02:04.1]}
17. Bxc6 {[%clk 0:01:37.2]} 17... Nxc6 {[%clk 0:02:06]} 18. Qxc7 {[%clk
0:01:17.4]} 18... Rxc7 {[%clk 0:02:07.9]} 19. Rab1 {[%clk 0:01:17.8]} 19... Rd8
{[%clk 0:02:07.3]} 20. Rfd1 {[%clk 0:01:16.3]} 20... Rcd7 {[%clk 0:02:08.5]} 21.
Rxd7 {[%clk 0:01:15.5]} 21... Rxd7 {[%clk 0:02:10.4]} 22. Kf1 {[%clk 0:01:07.2]}
22... Kf8 {[%clk 0:02:11.2]} 23. h3 {[%clk 0:00:58.8]} 23... Ke8 {[%clk
0:02:11.5]} 24. Ke1 {[%clk 0:00:53.4]} 24... Bh6 {[%clk 0:01:56.8]} 25. Rd1
{[%clk 0:00:46.3]} 25... Rxd1+ {[%clk 0:01:44.2]} 26. Kxd1 {[%clk 0:00:48.2]}
26... Nd7 {[%clk 0:01:42.8]} 27. Nd5 {[%clk 0:00:45.1]} 27... Bf8 {[%clk
0:01:34.9]} 28. Kd2 {[%clk 0:00:35.6]} 28... Kd8 {[%clk 0:01:35.6]} 29. Nc3
{[%clk 0:00:28.1]} 29... f5 {[%clk 0:01:28.6]} 30. e4 {[%clk 0:00:27.3]} 30...
e5 {[%clk 0:01:24]} 31. exf5 {[%clk 0:00:28.2]} 31... gxf5 {[%clk 0:01:25.5]}
32. Na4 {[%clk 0:00:25.7]} 32... Ke7 {[%clk 0:01:26.6]} 33. g4 {[%clk 0:00:22]}
33... Ke6 {[%clk 0:01:22.1]} 34. gxf5+ {[%clk 0:00:22.7]} 34... Kxf5 {[%clk
0:01:24]} 35. Ke2 {[%clk 0:00:21.5]} 35... Ke4 {[%clk 0:01:22.5]} 36. Nc3+
{[%clk 0:00:20.9]} 36... Kf5 {[%clk 0:01:23.5]} 37. Na4 {[%clk 0:00:20.2]} 37...
h5 {[%clk 0:01:24.4]} 38. Bc3 {[%clk 0:00:18.4]} 38... Kg5 {[%clk 0:01:20.2]}
39. Kf3 {[%clk 0:00:17.1]} 39... Kf5 {[%clk 0:01:21.8]} 40. Ke3 {[%clk
0:00:14.8]} 40... Bh6+ {[%clk 0:01:19.7]} 41. Ke2 {[%clk 0:00:16.4]} 41... Ke4
{[%clk 0:01:10.7]} 42. Bd2 {[%clk 0:00:16.9]} 42... Bxd2 {[%clk 0:01:11.7]} 43.
Nxd2+ {[%clk 0:00:18.8]} 43... Kd4 {[%clk 0:01:13.5]} 44. Nf3+ {[%clk
0:00:19.7]} 44... Kc4 {[%clk 0:01:14.4]} 45. h4 {[%clk 0:00:16.9]} 45... Nd4+
{[%clk 0:01:10.2]} 46. Nxd4 {[%clk 0:00:15.9]} 46... Kxd4 {[%clk 0:01:10.8]} 47.
Nb2 {[%clk 0:00:12.2]} 47... Nxc5 {[%clk 0:01:11.5]} 48. Nd1 {[%clk 0:00:13.9]}
48... Nd3 {[%clk 0:01:01.1]} 49. Ne3 {[%clk 0:00:13.7]} 49... Nf4+ {[%clk
0:00:58.6]} 50. Kd2 {[%clk 0:00:14.1]} 50... b6 {[%clk 0:00:48.5]} 51. f3 {[%clk
0:00:12]} 51... a5 {[%clk 0:00:40.8]} 52. Nf5+ {[%clk 0:00:12.6]} 52... Kc4
{[%clk 0:00:41.9]} 53. Nd6+ {[%clk 0:00:13.1]} 53... Kd5 {[%clk 0:00:31.4]} 54.
Nf5 {[%clk 0:00:11.4]} 54... b5 {[%clk 0:00:31.2]} 55. Ne3+ {[%clk 0:00:12.1]}
55... Kc5 {[%clk 0:00:30.9]} 56. Nf5 {[%clk 0:00:11.5]} 56... b4 {[%clk
0:00:31.7]} 57. Ng3 {[%clk 0:00:11.5]} 57... a4 {[%clk 0:00:32.1]} 58. Kc2
{[%clk 0:00:12.2]} 58... Kd4 {[%clk 0:00:32.9]} 59. Nf5+ {[%clk 0:00:12.6]}
59... Kc5 {[%clk 0:00:34.1]} 60. Ng3 {[%clk 0:00:13.9]} 60... Kc4 {[%clk
0:00:34.8]} 61. Nf5 {[%clk 0:00:14.9]} 61... b3+ {[%clk 0:00:35.8]} 62. axb3+
{[%clk 0:00:16.5]} 62... axb3+ {[%clk 0:00:37.7]} 63. Kb1 {[%clk 0:00:16.8]}
63... Kc3 {[%clk 0:00:37]} 64. Nd6 {[%clk 0:00:17.6]} 64... Ne2 {[%clk
0:00:27.9]} 65. Ne4+ {[%clk 0:00:18]} 65... Kd3 {[%clk 0:00:24.4]} 66. Kb2
{[%clk 0:00:18.2]} 66... Nd4 {[%clk 0:00:25.7]} 67. Ng3 {[%clk 0:00:18.1]} 67...
Ke3 {[%clk 0:00:19.2]} 68. Nxh5 {[%clk 0:00:17.4]} 68... Kxf3 {[%clk 0:00:20.6]}
69. Nf6 {[%clk 0:00:15.6]} 69... e4 {[%clk 0:00:21.9]} 70. Nd5 {[%clk
0:00:16.1]} 70... Kg4 {[%clk 0:00:18.7]} 71. Kc3 {[%clk 0:00:16.2]} 71... Ne2+
{[%clk 0:00:06.2]} 72. Kxb3 {[%clk 0:00:16.1]} 72... Kxh4 {[%clk 0:00:08.1]} 73.
Kc2 {[%clk 0:00:13.4]} 73... Kg3 {[%clk 0:00:09.4]} 74. Kd2 {[%clk 0:00:09.3]}
74... Kf2 {[%clk 0:00:10.7]} 75. Ne3 {[%clk 0:00:09.3]} 75... Nf4 {[%clk
0:00:11.1]} 76. Ng4+ {[%clk 0:00:10.2]} 76... Kf3 {[%clk 0:00:12.3]} 77. Ne3
{[%clk 0:00:10.6]} 77... Ng2 {[%clk 0:00:09.4]} 78. Nxg2 {[%clk 0:00:10.6]}
78... Kxg2 {[%clk 0:00:11.3]} 79. Ke3 {[%clk 0:00:12.1]} 79... Kh1 {[%clk
0:00:12.7]} 80. Kxe4 {[%clk 0:00:14]} 1/2-1/2

[Event "*** Titled Tuesday Blitz"]
[Site "Chess.com"]
[Date "2018.12.04"]
[Round "6"]
[White "nubair1198"]
[Black "Koksik_13"]
[Result "1/2-1/2"]
[WhiteElo "2619"]
[BlackElo "2728"]
[TimeControl "180+2"]
[EndTime "14:29:19 PST"]
[Termination "Game drawn by 50-move rule"]

1. d4 {[%clk 0:03:01.9]} 1... e6 {[%clk 0:02:59.7]} 2. c4 {[%clk 0:03:03]} 2...
d5 {[%clk 0:02:59.5]} 3. Nc3 {[%clk 0:03:03.9]} 3... a6 {[%clk 0:03:00.9]} 4.
cxd5 {[%clk 0:02:53.1]} 4... exd5 {[%clk 0:03:01.7]} 5. Nf3 {[%clk 0:02:55]}
5... c6 {[%clk 0:03:03.2]} 6. Qc2 {[%clk 0:02:50.6]} 6... Nf6 {[%clk 0:03:02.8]}
7. Bg5 {[%clk 0:02:51.8]} 7... Nbd7 {[%clk 0:03:03.9]} 8. e3 {[%clk 0:02:53.2]}
8... Be7 {[%clk 0:03:05.4]} 9. Bd3 {[%clk 0:02:54.6]} 9... O-O {[%clk
0:03:06.9]} 10. O-O {[%clk 0:02:56.1]} 10... Re8 {[%clk 0:03:08.4]} 11. Rab1
{[%clk 0:02:57.5]} 11... Nf8 {[%clk 0:03:09.9]} 12. b4 {[%clk 0:02:58.9]} 12...
Bd6 {[%clk 0:03:11.3]} 13. a4 {[%clk 0:02:58.1]} 13... Bg4 {[%clk 0:03:12.1]}
14. Nd2 {[%clk 0:02:58.5]} 14... Bh5 {[%clk 0:03:13.3]} 15. h3 {[%clk 0:02:57]}
15... Bg6 {[%clk 0:03:14.6]} 16. b5 {[%clk 0:02:56]} 16... axb5 {[%clk 0:03:15]}
17. axb5 {[%clk 0:02:57.9]} 17... Bxd3 {[%clk 0:03:16.3]} 18. Qxd3 {[%clk
0:02:59.8]} 18... h6 {[%clk 0:03:17]} 19. Bxf6 {[%clk 0:02:53.2]} 19... Qxf6
{[%clk 0:03:18.9]} 20. bxc6 {[%clk 0:02:54.7]} 20... bxc6 {[%clk 0:03:20.8]} 21.
Rb6 {[%clk 0:02:55.9]} 21... Ng6 {[%clk 0:03:19]} 22. Rc1 {[%clk 0:02:52.4]}
22... Nh4 {[%clk 0:03:16.1]} 23. Ne2 {[%clk 0:02:44.2]} 23... Ra3 {[%clk
0:03:07.6]} 24. Qb1 {[%clk 0:02:33.4]} 24... Qg5 {[%clk 0:03:01]} 25. g3 {[%clk
0:02:29.4]} 25... Raxe3 {[%clk 0:02:54.7]} 26. fxe3 {[%clk 0:00:53.9]} 26...
Qxe3+ {[%clk 0:02:51.5]} 27. Kh1 {[%clk 0:00:55.2]} 27... Qxe2 {[%clk
0:02:52.8]} 28. Rg1 {[%clk 0:00:48.7]} 28... Qxd2 {[%clk 0:02:49.9]} 29. Rb2
{[%clk 0:00:46.1]} 29... Qxd4 {[%clk 0:02:29.8]} 30. gxh4 {[%clk 0:00:47.2]}
30... Qxh4 {[%clk 0:02:28]} 31. Qf5 {[%clk 0:00:43.4]} 31... Qe4+ {[%clk
0:02:28.3]} 32. Qxe4 {[%clk 0:00:40.9]} 32... dxe4 {[%clk 0:02:30.2]} 33. Rd1
{[%clk 0:00:38.9]} 33... Be5 {[%clk 0:02:26.1]} 34. Rc2 {[%clk 0:00:39.5]} 34...
f5 {[%clk 0:02:21.2]} 35. Rxc6 {[%clk 0:00:38.8]} 35... e3 {[%clk 0:02:22.3]}
36. Kg2 {[%clk 0:00:39.3]} 36... Bf6 {[%clk 0:01:53.5]} 37. Kf3 {[%clk
0:00:39.5]} 37... Bh4 {[%clk 0:01:53.5]} 38. Ke2 {[%clk 0:00:37.3]} 38... f4
{[%clk 0:01:53.9]} 39. Rg6 {[%clk 0:00:36.8]} 39... f3+ {[%clk 0:01:45.2]} 40.
Kxf3 {[%clk 0:00:35.7]} 40... e2 {[%clk 0:01:46.6]} 41. Rdg1 {[%clk 0:00:37.4]}
41... e1=Q {[%clk 0:01:42.7]} 42. Rxg7+ {[%clk 0:00:38.4]} 42... Kh8 {[%clk
0:01:42.8]} 43. Rxe1 {[%clk 0:00:39.7]} 43... Rxe1 {[%clk 0:01:41.5]} 44. Rb7
{[%clk 0:00:40.6]} 44... Rg1 {[%clk 0:01:40.9]} 45. Kf4 {[%clk 0:00:18.4]} 45...
Bf6 {[%clk 0:01:26.7]} 46. Kf5 {[%clk 0:00:14.4]} 46... Bg7 {[%clk 0:01:27.5]}
47. Rb3 {[%clk 0:00:11.7]} 47... Kg8 {[%clk 0:01:25.6]} 48. Rb8+ {[%clk
0:00:12.1]} 48... Kh7 {[%clk 0:01:26.1]} 49. Rb3 {[%clk 0:00:13.8]} 49... Rf1+
{[%clk 0:01:25.1]} 50. Kg4 {[%clk 0:00:14.4]} 50... Kg6 {[%clk 0:01:26.3]} 51.
Rf3 {[%clk 0:00:15.5]} 51... Ra1 {[%clk 0:01:23.9]} 52. Rd3 {[%clk 0:00:16]}
52... Be5 {[%clk 0:01:23.9]} 53. Re3 {[%clk 0:00:15.4]} 53... h5+ {[%clk
0:01:22.3]} 54. Kf3 {[%clk 0:00:16.5]} 54... Kf5 {[%clk 0:01:23.6]} 55. Rb3
{[%clk 0:00:17.2]} 55... Rg1 {[%clk 0:01:22.4]} 56. Kf2 {[%clk 0:00:17.8]} 56...
Ra1 {[%clk 0:01:23.1]} 57. Rf3+ {[%clk 0:00:18]} 57... Kg5 {[%clk 0:01:21.4]}
58. Rb3 {[%clk 0:00:18.5]} 58... Kh4 {[%clk 0:01:21.1]} 59. Kg2 {[%clk
0:00:17.1]} 59... Ra2+ {[%clk 0:01:19.5]} 60. Kf3 {[%clk 0:00:13.8]} 60... Kxh3
{[%clk 0:01:15.1]} 61. Rb5 {[%clk 0:00:14]} 61... Ra3+ {[%clk 0:00:55.5]} 62.
Ke2 {[%clk 0:00:14.9]} 62... Ra2+ {[%clk 0:00:52.7]} 63. Kf3 {[%clk 0:00:16.1]}
63... Ra3+ {[%clk 0:00:53.4]} 64. Ke4 {[%clk 0:00:17.2]} 64... Bg3 {[%clk
0:00:28.1]} 65. Rxh5+ {[%clk 0:00:17.8]} 65... Kg4 {[%clk 0:00:29.6]} 66. Rb5
{[%clk 0:00:19.1]} 66... Ra1 {[%clk 0:00:28]} 67. Rd5 {[%clk 0:00:18.2]} 67...
Re1+ {[%clk 0:00:27.4]} 68. Kd3 {[%clk 0:00:19.7]} 68... Bf4 {[%clk 0:00:27.7]}
69. Kd4 {[%clk 0:00:20.7]} 69... Kf3 {[%clk 0:00:27.2]} 70. Kd3 {[%clk 0:00:22]}
70... Ra1 {[%clk 0:00:20.9]} 71. Kd4 {[%clk 0:00:22.9]} 71... Be3+ {[%clk
0:00:20.3]} 72. Kd3 {[%clk 0:00:24]} 72... Ra3+ {[%clk 0:00:19.3]} 73. Kc4
{[%clk 0:00:25.3]} 73... Ke4 {[%clk 0:00:20.8]} 74. Rd8 {[%clk 0:00:24.7]} 74...
Bf4 {[%clk 0:00:19.2]} 75. Rc8 {[%clk 0:00:25.5]} 75... Ra1 {[%clk 0:00:18.5]}
76. Rc6 {[%clk 0:00:26.2]} 76... Be5 {[%clk 0:00:13.7]} 77. Rc5 {[%clk
0:00:27.4]} 77... Rb1 {[%clk 0:00:09.7]} 78. Rc6 {[%clk 0:00:28]} 78... Rb2
{[%clk 0:00:08.5]} 79. Rc5 {[%clk 0:00:28.9]} 79... Bd4 {[%clk 0:00:08.9]} 80.
Rc6 {[%clk 0:00:30.3]} 80... Rb1 {[%clk 0:00:08.8]} 81. Re6+ {[%clk 0:00:30.2]}
81... Be5 {[%clk 0:00:10]} 82. Rc6 {[%clk 0:00:31.6]} 82... Kf5 {[%clk
0:00:09.6]} 83. Kd5 {[%clk 0:00:31.7]} 83... Rd1+ {[%clk 0:00:09.8]} 84. Kc4
{[%clk 0:00:33.1]} 84... Bf6 {[%clk 0:00:08.2]} 85. Rc5+ {[%clk 0:00:32.5]}
85... Ke4 {[%clk 0:00:07.4]} 86. Rc6 {[%clk 0:00:34]} 86... Be5 {[%clk
0:00:04.5]} 87. Rc5 {[%clk 0:00:35.2]} 87... Bd6 {[%clk 0:00:05.6]} 88. Rc6
{[%clk 0:00:35.1]} 88... Ke5 {[%clk 0:00:06]} 89. Ra6 {[%clk 0:00:32.6]} 89...
Rc1+ {[%clk 0:00:04]} 90. Kd3 {[%clk 0:00:34]} 90... Bc5 {[%clk 0:00:03.7]} 91.
Rh6 {[%clk 0:00:33.7]} 91... Kd5 {[%clk 0:00:03.9]} 92. Rh5+ {[%clk 0:00:34.7]}
92... Kc6 {[%clk 0:00:05.4]} 93. Ke4 {[%clk 0:00:36.1]} 93... Bd6 {[%clk
0:00:05.5]} 94. Kd4 {[%clk 0:00:36.7]} 94... Ra1 {[%clk 0:00:06.1]} 95. Rh6
{[%clk 0:00:37.4]} 95... Ra4+ {[%clk 0:00:06.9]} 96. Kc3 {[%clk 0:00:37.4]}
96... Kd5 {[%clk 0:00:08.8]} 97. Kb3 {[%clk 0:00:37.1]} 97... Ra3+ {[%clk
0:00:09.6]} 98. Kb2 {[%clk 0:00:37]} 98... Rg3 {[%clk 0:00:10.6]} 99. Rh4 {[%clk
0:00:36.4]} 99... Bc5 {[%clk 0:00:10.8]} 100. Kc2 {[%clk 0:00:35.2]} 100... Bd4
{[%clk 0:00:12]} 101. Kd2 {[%clk 0:00:30.5]} 101... Rf3 {[%clk 0:00:09.4]} 102.
Rh2 {[%clk 0:00:29.1]} 102... Ra3 {[%clk 0:00:08.1]} 103. Re2 {[%clk 0:00:30.1]}
103... Kc4 {[%clk 0:00:08.7]} 104. Kc2 {[%clk 0:00:31.4]} 104... Ra1 {[%clk
0:00:08.6]} 105. Rd2 {[%clk 0:00:32]} 105... Bc3 {[%clk 0:00:09]} 106. Re2
{[%clk 0:00:32.1]} 106... Bd4 {[%clk 0:00:08.5]} 107. Rd2 {[%clk 0:00:33]}
107... Re1 {[%clk 0:00:09.5]} 108. Rd1 {[%clk 0:00:31.3]} 108... Re8 {[%clk
0:00:09.1]} 109. Rd2 {[%clk 0:00:32.3]} 109... Rb8 {[%clk 0:00:07.2]} 110. Re2
{[%clk 0:00:32.7]} 110... Ra8 {[%clk 0:00:05.9]} 111. Rd2 {[%clk 0:00:33.2]}
111... Be3 {[%clk 0:00:07.2]} 112. Re2 {[%clk 0:00:32.9]} 112... Kd4 {[%clk
0:00:08.5]} 113. Re1 {[%clk 0:00:28]} 113... Ra2+ {[%clk 0:00:08.8]} 114. Kb3
{[%clk 0:00:29.4]} 114... Ra8 {[%clk 0:00:09.5]} 115. Rd1+ {[%clk 0:00:29.6]}
115... Ke4 {[%clk 0:00:09.5]} 116. Rd7 {[%clk 0:00:29.8]} 116... Bd4 {[%clk
0:00:10]} 117. Re7+ {[%clk 0:00:29.1]} 117... Kd3 {[%clk 0:00:10.8]} 118. Rb7
{[%clk 0:00:28.6]} 118... Ra1 {[%clk 0:00:11.7]} 119. Rb5 {[%clk 0:00:29.9]}
119... Rh1 {[%clk 0:00:11.4]} 120. Rb4 {[%clk 0:00:30.6]} 120... Bc5 {[%clk
0:00:10.4]} 121. Rb5 {[%clk 0:00:30.3]} 121... Kd4 {[%clk 0:00:11.2]} 122. Kc2
{[%clk 0:00:29.5]} 122... Kc4 {[%clk 0:00:12.5]} 123. Rb2 {[%clk 0:00:27.3]}
123... Bd4 {[%clk 0:00:12.5]} 124. Ra2 {[%clk 0:00:27.3]} 124... Bc5 {[%clk
0:00:10.9]} 125. Rb2 {[%clk 0:00:24.7]} 125... Ba3 {[%clk 0:00:10.3]} 126. Ra2
{[%clk 0:00:21]} 126... Bb4 {[%clk 0:00:06.2]} 127. Rb2 {[%clk 0:00:22.1]}
127... Rg1 {[%clk 0:00:04.9]} 128. Ra2 {[%clk 0:00:22.8]} 128... Rg2+ {[%clk
0:00:03.3]} 129. Kb1 {[%clk 0:00:24]} 129... Rg3 {[%clk 0:00:04.7]} 130. Kc2
{[%clk 0:00:25.1]} 130... Rh3 {[%clk 0:00:04.2]} 131. Rb2 {[%clk 0:00:25.8]}
131... Bc3 {[%clk 0:00:04.9]} 132. Ra2 {[%clk 0:00:26.3]} 132... Rg3 {[%clk
0:00:03.9]} 133. Ra4+ {[%clk 0:00:26.3]} 133... Bb4 {[%clk 0:00:05.3]} 134. Ra2
{[%clk 0:00:27.9]} 134... Ba3 {[%clk 0:00:05.3]} 135. Kb1 {[%clk 0:00:26.6]}
135... Kb3 {[%clk 0:00:05.4]} 136. Rb2+ {[%clk 0:00:28.1]} 136... Ka4 {[%clk
0:00:05.7]} 137. Re2 {[%clk 0:00:26.7]} 137... Bb4 {[%clk 0:00:05]} 138. Kc2
{[%clk 0:00:27.4]} 138... Kb5 {[%clk 0:00:05.6]} 139. Re4 {[%clk 0:00:27.7]}
139... Kc5 {[%clk 0:00:04.6]} 140. Re5+ {[%clk 0:00:27.1]} 1/2-1/2

[Event "*** Titled Tuesday Blitz"]
[Site "Chess.com"]
[Date "2018.12.04"]
[Round "7"]
[White "Manukyan_Artak"]
[Black "GMWSO"]
[Result "0-1"]
[WhiteElo "2397"]
[BlackElo "2968"]
[TimeControl "180+2"]
[EndTime "14:31:14 PST"]
[Termination "GMWSO won by resignation"]

1. e4 {[%clk 0:03:01.9]} 1... e6 {[%clk 0:02:57.9]} 2. d4 {[%clk 0:03:02.7]}
2... d5 {[%clk 0:02:59.8]} 3. e5 {[%clk 0:03:03.5]} 3... c5 {[%clk 0:03:00.8]}
4. c3 {[%clk 0:03:04.9]} 4... Nc6 {[%clk 0:03:02.3]} 5. Nf3 {[%clk 0:03:05.8]}
5... Qb6 {[%clk 0:03:03.8]} 6. a3 {[%clk 0:03:07]} 6... c4 {[%clk 0:03:04.9]} 7.
Nbd2 {[%clk 0:03:07.4]} 7... Na5 {[%clk 0:03:06.5]} 8. Rb1 {[%clk 0:03:08.3]}
8... Bd7 {[%clk 0:03:07.8]} 9. g3 {[%clk 0:03:03.5]} 9... Qc6 {[%clk 0:03:07.1]}
10. Bh3 {[%clk 0:02:53.2]} 10... Qa4 {[%clk 0:03:07.4]} 11. Qe2 {[%clk 0:02:27]}
11... Qc2 {[%clk 0:03:07.5]} 12. O-O {[%clk 0:02:28.1]} 12... Nb3 {[%clk
0:03:06.8]} 13. Nxb3 {[%clk 0:02:21.9]} 13... Qxe2 {[%clk 0:03:07.3]} 0-1

[Event "*** Titled Tuesday Blitz"]
[Site "Chess.com"]
[Date "2018.12.04"]
[Round "7"]
[White "PelinGorki"]
[Black "NateSolon"]
[Result "1-0"]
[WhiteElo "2529"]
[BlackElo "2494"]
[TimeControl "180+2"]
[EndTime "14:32:34 PST"]
[Termination "PelinGorki won by resignation"]

1. e4 {[%clk 0:03:01.9]} 1... c5 {[%clk 0:02:59.3]} 2. Nf3 {[%clk 0:03:03]} 2...
e6 {[%clk 0:02:58.1]} 3. d4 {[%clk 0:03:04.3]} 3... cxd4 {[%clk 0:02:58.2]} 4.
Nxd4 {[%clk 0:03:05.8]} 4... Nc6 {[%clk 0:02:58.3]} 5. Nc3 {[%clk 0:03:07.3]}
5... Qc7 {[%clk 0:02:59.5]} 6. g3 {[%clk 0:03:08.5]} 6... Nf6 {[%clk 0:02:56.1]}
7. Bg2 {[%clk 0:03:09.8]} 7... Nxd4 {[%clk 0:02:44.6]} 8. Qxd4 {[%clk
0:03:10.2]} 8... Bc5 {[%clk 0:02:45.9]} 9. Qd3 {[%clk 0:03:11.5]} 9... Ng4
{[%clk 0:02:40.2]} 10. O-O {[%clk 0:03:11.9]} 10... h5 {[%clk 0:02:27.3]} 11.
Bf4 {[%clk 0:03:11.2]} 11... Ne5 {[%clk 0:01:58.5]} 12. Nb5 {[%clk 0:03:11.2]}
1-0

[Event "*** Titled Tuesday Blitz"]
[Site "Chess.com"]
[Date "2018.12.04"]
[Round "7"]
[White "Chessmatus"]
[Black "ASVZ"]
[Result "0-1"]
[WhiteElo "2169"]
[BlackElo "2289"]
[TimeControl "180+2"]
[EndTime "14:33:27 PST"]
[Termination "ASVZ won by resignation"]

1. d4 {[%clk 0:03:01.9]} 1... e6 {[%clk 0:01:50.6]} 2. c4 {[%clk 0:02:59.6]}
2... b6 {[%clk 0:01:51.2]} 3. f3 {[%clk 0:02:59.7]} 3... Bb7 {[%clk 0:01:52.4]}
4. e4 {[%clk 0:03:00.8]} 4... f5 {[%clk 0:01:54]} 5. exf5 {[%clk 0:02:59.1]}
5... Nh6 {[%clk 0:01:55.1]} 6. fxe6 {[%clk 0:02:57.4]} 6... Nf5 {[%clk 0:01:56]}
7. exd7+ {[%clk 0:02:37.1]} 7... Nxd7 {[%clk 0:01:56.2]} 8. Qe2+ {[%clk
0:02:36.6]} 8... Kf7 {[%clk 0:01:55.5]} 9. Be3 {[%clk 0:02:26.5]} 9... Bb4+
{[%clk 0:01:49.9]} 10. Nd2 {[%clk 0:02:12.8]} 10... Re8 {[%clk 0:01:49.9]} 11.
Bf2 {[%clk 0:02:11.6]} 11... Rxe2+ {[%clk 0:01:49.4]} 12. Nxe2 {[%clk
0:02:12.5]} 12... Bxd2+ {[%clk 0:01:44.4]} 13. Kxd2 {[%clk 0:02:13.1]} 13...
Qg5+ {[%clk 0:01:43.9]} 14. Kc2 {[%clk 0:02:10]} 14... Ne3+ {[%clk 0:01:43.9]}
15. Kd3 {[%clk 0:02:10.6]} 15... Nxf1 {[%clk 0:01:41.8]} 16. Rhxf1 {[%clk
0:02:09.8]} 16... Qxg2 {[%clk 0:01:41.3]} 17. Bg3 {[%clk 0:02:10.2]} 17... Re8
{[%clk 0:01:32.9]} 18. Rae1 {[%clk 0:02:08.5]} 18... Rxe2 {[%clk 0:01:29.9]} 0-1

[Event "*** Titled Tuesday Blitz"]
[Site "Chess.com"]
[Date "2018.12.04"]
[Round "7"]
[White "ddtru"]
[Black "djano"]
[Result "0-1"]
[WhiteElo "2318"]
[BlackElo "2353"]
[TimeControl "180+2"]
[EndTime "14:35:17 PST"]
[Termination "djano won by resignation"]

1. d4 {[%clk 0:03:01.9]} 1... Nf6 {[%clk 0:03:00.1]} 2. c4 {[%clk 0:03:02.8]}
2... e6 {[%clk 0:03:01]} 3. Nc3 {[%clk 0:03:02]} 3... d5 {[%clk 0:03:02.3]} 4.
cxd5 {[%clk 0:03:01.5]} 4... Nxd5 {[%clk 0:03:04.2]} 5. e4 {[%clk 0:03:00.8]}
5... Nxc3 {[%clk 0:03:04.6]} 6. bxc3 {[%clk 0:03:02]} 6... c5 {[%clk 0:03:06.5]}
7. Nf3 {[%clk 0:03:02.8]} 7... cxd4 {[%clk 0:03:07.3]} 8. cxd4 {[%clk
0:03:03.7]} 8... Bb4+ {[%clk 0:03:08.8]} 9. Bd2 {[%clk 0:03:05]} 9... Bxd2+
{[%clk 0:03:10.1]} 10. Qxd2 {[%clk 0:03:06]} 10... O-O {[%clk 0:03:12]} 11. Bc4
{[%clk 0:03:06.1]} 11... b6 {[%clk 0:03:12.5]} 12. O-O {[%clk 0:03:05.7]} 12...
Bb7 {[%clk 0:03:13.8]} 13. Rfe1 {[%clk 0:03:03.2]} 13... Nd7 {[%clk 0:03:10.8]}
14. d5 {[%clk 0:02:56.2]} 14... Rc8 {[%clk 0:03:04.7]} 15. dxe6 {[%clk
0:02:48.1]} 15... Rxc4 {[%clk 0:03:01.3]} 16. Qxd7 {[%clk 0:02:37.8]} 16... Qxd7
{[%clk 0:02:50.9]} 17. exd7 {[%clk 0:02:38.8]} 17... Rd8 {[%clk 0:02:51.6]} 18.
Ne5 {[%clk 0:02:20.9]} 18... Rc5 {[%clk 0:02:32.7]} 19. f4 {[%clk 0:01:40]}
19... f6 {[%clk 0:02:32.7]} 20. Nd3 {[%clk 0:01:32.1]} 20... Rc7 {[%clk
0:02:25.4]} 21. Re2 {[%clk 0:01:06.5]} 21... Ba6 {[%clk 0:02:18]} 22. Re3 {[%clk
0:00:55.4]} 22... Rc3 {[%clk 0:02:15.7]} 23. Rd1 {[%clk 0:00:30.5]} 23... Rxd7
{[%clk 0:02:16.6]} 24. Nb2 {[%clk 0:00:27.7]} 24... Rxe3 {[%clk 0:02:13.5]} 25.
Rxd7 {[%clk 0:00:27.7]} 25... Re1+ {[%clk 0:02:15]} 26. Kf2 {[%clk 0:00:28.7]}
26... Re2+ {[%clk 0:02:16.5]} 27. Kf3 {[%clk 0:00:28.7]} 27... Rxb2 {[%clk
0:02:18.4]} 28. Rxa7 {[%clk 0:00:29.3]} 28... Bc4 {[%clk 0:02:18.6]} 29. Rb7
{[%clk 0:00:28]} 29... Bxa2 {[%clk 0:02:15]} 30. e5 {[%clk 0:00:27.7]} 30...
Bd5+ {[%clk 0:02:14.6]} 31. Ke3 {[%clk 0:00:27.5]} 31... Bxb7 {[%clk 0:02:14.9]}
0-1